[Event "5"]
[Site "Emanuel Lasker Arena"]
[Date "2024.04.09"]
[Round "2"]
[White "CarlsenVomFach"]
[Black "Klaus Junge"]
[Result "1-0"]
[WhiteElo "2230"]
[BlackElo "1620"]
[Annotator "RC"]
[PlyCount "97"]
[EventDate "2024.04.09"]
[EventType "swiss (blitz)"]
[TimeControl "60"]

1. e4 {[%emt 0:00:01]} c5 {[%emt 0:00:01]} 2. Nf3 {[%emt 0:00:01]} d6 {[%emt 0:00:01]} 3. d4 {[%emt 0:00:01]} cxd4 {[%emt 0:00:01]} 4. Nxd4 {[%emt 0:00:01]} Nf6 {[%emt 0:00:01]} 5. Nc3 {[%emt 0:00:01]} a6 {[%emt 0:00:01]} 6. Be3 {[%emt 0:00:01]} e6 {[%emt 0:00:01]} 7. f3 {[%emt 0:00:01]} h5 {[%emt 0:00:01]} 8. a4 {[%emt 0:00:01]} Nc6 {[%emt 0:00:01]} 9. Bf2 {[%emt 0:00:00]} d5 {[%emt 0:00:01]} 10. exd5 {[%emt 0:00:02]} exd5 {[%emt 0:00:01]} 11. Bd3 {[%emt 0:00:01]} Bc5 {[%emt 0:00:01]} 12. Qe2+ {[%emt 0:00:01]} Kf8 {[%emt 0:00:04]} 13. Ne6+ {[%emt 0:00:01]} Bxe6 {[%emt 0:00:01]} 14. Bxc5+ {[%emt 0:00:01]} Ke8 {[%emt 0:00:03]} 15. O-O-O {[%emt 0:00:07]} Qa5 {[%emt 0:00:04]} 16. Qf2 {[%emt 0:00:01]} Nb4 {[%emt 0:00:06]} 17. Rhe1 {[%emt 0:00:03]} Rc8 {[%emt 0:00:03]} 18. Bd6 {[%emt 0:00:03]} Kd7 {[%emt 0:00:03]} 19. Be5 {[%emt 0:00:06]} Qc5 {[%emt 0:00:03]} 20. Qxc5 {[%emt 0:00:01]} Rxc5 {[%emt 0:00:01]} 21. Ne2 {[%emt 0:00:01]} Rhc8 {[%emt 0:00:01]} 22. Nd4 {[%emt 0:00:02]} Nxd3+ {[%emt 0:00:01]} 23. Rxd3 {[%emt 0:00:01]} h4 {[%emt 0:00:02]} 24. Rb3 {[%emt 0:00:02]} b6 {[%emt 0:00:01]} 25. Rxb6 {[%emt 0:00:01]} h3 {[%emt 0:00:02]} 26. gxh3 {[%emt 0:00:02]} a5 {[%emt 0:00:02]} 27. b3 {[%emt 0:00:02]} Rc3 {[%emt 0:00:02]} 28. Kb2 {[%emt 0:00:01]} Ke8 {[%emt 0:00:01]} 29. Ra6 {[%emt 0:00:01]} Kd7 {[%emt 0:00:02]} 30. Rxa5 {[%emt 0:00:01]} R8c5 {[%emt 0:00:01]} 31. Rxc5 {[%emt 0:00:01]} Rxc5 {[%emt 0:00:01]} 32. h4 {[%emt 0:00:01]} Bh3 {[%emt 0:00:01]} 33. Rg1 {[%emt 0:00:01]} Nh5 {[%emt 0:00:01]} 34. Ka3 {[%emt 0:00:01]} f6 {[%emt 0:00:01]} 35. Bb8 {[%emt 0:00:01]} Rc8 {[%emt 0:00:01]} 36. Ba7 {[%emt 0:00:01]} Ra8 {[%emt 0:00:00]} 37. Bc5 {[%emt 0:00:01]} Rc8 {[%emt 0:00:00]} 38. b4 {[%emt 0:00:01]} f5 {[%emt 0:00:00]} 39. Rg5 {[%emt 0:00:01]} g6 {[%emt 0:00:00]} 40. Rxg6 {[%emt 0:00:00]} Nf4 {[%emt 0:00:00]} 41. Rg7+ {[%emt 0:00:00]} Kd8 {[%emt 0:00:00]} 42. a5 {[%emt 0:00:00]} Bf1 {[%emt 0:00:00]} 43. Bd6 {[%emt 0:00:01]} Rc3+ {[%emt 0:00:00]} 44. Ka4 {[%emt 0:00:00]} Nh5 {[%emt 0:00:00]} 45. Rh7 {[%emt 0:00:01]} Nf6 {[%emt 0:00:00]} 46. Be7+ {[%emt 0:00:00]} Kc7 {[%emt 0:00:01]} 47. Ne6+ {[%emt 0:00:00]} Kc8 {[%emt 0:00:01]} 48. Bxf6 {[%emt 0:00:00]} Rxc2 {[%emt 0:00:00] '} 49. Kb3 {[%emt 0:00:00] (Lag: Av=0.06s, max=0.7s)} 1-0

[Event "5"]
[Site "Emanuel Lasker Arena"]
[Date "2024.04.09"]
[Round "2"]
[White "Josha Matin"]
[Black "Mrs Florrick"]
[Result "1/2-1/2"]
[WhiteElo "2222"]
[BlackElo "1780"]
[Annotator "RC"]
[PlyCount "108"]
[EventDate "2024.04.09"]
[EventType "swiss (blitz)"]
[TimeControl "60"]

1. d4 {[%emt 0:00:01]} Nf6 {[%emt 0:00:01]} 2. c4 {[%emt 0:00:01]} g6 {[%emt 0:00:01]} 3. Nc3 {[%emt 0:00:01]} d5 {[%emt 0:00:01]} 4. cxd5 {[%emt 0:00:01]} Nxd5 {[%emt 0:00:01]} 5. e4 {[%emt 0:00:01]} Nxc3 {[%emt 0:00:00]} 6. bxc3 {[%emt 0:00:01]} Bg7 {[%emt 0:00:01]} 7. Bc4 {[%emt 0:00:01]} c5 {[%emt 0:00:01]} 8. Ne2 {[%emt 0:00:01]} Nc6 {[%emt 0:00:01]} 9. Be3 {[%emt 0:00:01]} O-O {[%emt 0:00:00]} 10. O-O {[%emt 0:00:01]} b6 {[%emt 0:00:01]} 11. h3 {[%emt 0:00:01]} cxd4 {[%emt 0:00:01]} 12. cxd4 {[%emt 0:00:01]} e6 {[%emt 0:00:01]} 13. f3 {[%emt 0:00:01]} Bb7 {[%emt 0:00:02]} 14. Qd2 {[%emt 0:00:02]} Na5 {[%emt 0:00:01]} 15. Bb5 {[%emt 0:00:04]} a6 {[%emt 0:00:02]} 16. Bg5 {[%emt 0:00:04]} f6 {[%emt 0:00:04]} 17. Nf4 {[%emt 0:00:03]} axb5 {[%emt 0:00:01]} 18. Nxe6 {[%emt 0:00:01]} Nc4 {[%emt 0:00:03]} 19. Qd3 {[%emt 0:00:04]} Qd6 {[%emt 0:00:07]} 20. Nxf8 {[%emt 0:00:01]} Bxf8 {[%emt 0:00:01]} 21. Bd2 {[%emt 0:00:03]} Bg7 {[%emt 0:00:02]} 22. Rf2 {[%emt 0:00:03]} f5 {[%emt 0:00:02]} 23. Bc3 {[%emt 0:00:03]} fxe4 {[%emt 0:00:01]} 24. fxe4 {[%emt 0:00:01]} Qd7 {[%emt 0:00:02]} 25. d5 {[%emt 0:00:02]} Rxa2 {[%emt 0:00:02]} 26. Raxa2 {[%emt 0:00:01]} Bxc3 {[%emt 0:00:02]} 27. Qxc3 {[%emt 0:00:00]} Bxd5 {[%emt 0:00:01]} 28. exd5 {[%emt 0:00:01]} Qxd5 {[%emt 0:00:01]} 29. Qf6 {[%emt 0:00:01]} Qd1+ {[%emt 0:00:01]} 30. Rf1 {[%emt 0:00:01]} Qxf1+ {[%emt 0:00:01]} 31. Qxf1 {[%emt 0:00:01]} Na5 {[%emt 0:00:01]} 32. Qc4+ {[%emt 0:00:01]} bxc4 {[%emt 0:00:01]} 33. Rd2 {[%emt 0:00:01]} Kf8 {[%emt 0:00:01]} 34. Rd8+ {[%emt 0:00:01]} Kg7 {[%emt 0:00:01]} 35. Rb8 {[%emt 0:00:01]} c3 {[%emt 0:00:00]} 36. Rc8 {[%emt 0:00:01]} Nb3 {[%emt 0:00:01]} 37. Rc4 {[%emt 0:00:01]} h5 {[%emt 0:00:01]} 38. Kh1 {[%emt 0:00:01]} b5 {[%emt 0:00:01]} 39. Rxc3 {[%emt 0:00:01]} Nd2 {[%emt 0:00:01]} 40. Rc8 {[%emt 0:00:01]} Kf6 {[%emt 0:00:00]} 41. Rb8 {[%emt 0:00:01]} Ke6 {[%emt 0:00:00]} 42. Rxb5 {[%emt 0:00:01]} Ke7 {[%emt 0:00:00]} 43. Kh2 {[%emt 0:00:01]} Nc4 {[%emt 0:00:00]} 44. Kg1 {[%emt 0:00:00]} Ke6 {[%emt 0:00:01]} 45. Rxh5 {[%emt 0:00:00]} gxh5 {[%emt 0:00:00]} 46. g4 {[%emt 0:00:00]} hxg4 {[%emt 0:00:00]} 47. hxg4 {[%emt 0:00:00]} Nd6 {[%emt 0:00:00]} 48. Kf2 {[%emt 0:00:00]} Ne4+ {[%emt 0:00:01]} 49. Kf3 {[%emt 0:00:00]} Nd2+ {[%emt 0:00:00]} 50. Ke2 {[%emt 0:00:00]} Kf7 {[%emt 0:00:00]} 51. Kd3 {[%emt 0:00:00]} Kg8 {[%emt 0:00:00]} 52. Kxd2 {[%emt 0:00:00]} Kf7 {[%emt 0:00:00]} 53. g5 {[%emt 0:00:00]} Kg6 {[%emt 0:00:00]} 54. Kd3 {[%emt 0:00:00]} Kxg5 {[%emt 0:00:00] (Lag: Av=0.06s, max=0.6s)} 1/2-1/2

[Event "5"]
[Site "Emanuel Lasker Arena"]
[Date "2024.04.09"]
[Round "2"]
[White "Chartwell"]
[Black "Alicia"]
[Result "0-1"]
[WhiteElo "2150"]
[BlackElo "2226"]
[Annotator "RC"]
[PlyCount "90"]
[EventDate "2024.04.09"]
[EventType "swiss (blitz)"]
[TimeControl "60"]

1. d4 {[%emt 0:00:01]} f5 {[%emt 0:00:01]} 2. Nc3 {[%emt 0:00:04]} Nf6 {[%emt 0:00:01]} 3. Bg5 {[%emt 0:00:01]} d5 {[%emt 0:00:01]} 4. Bxf6 {[%emt 0:00:01]} exf6 {[%emt 0:00:01]} 5. e3 {[%emt 0:00:01]} c6 {[%emt 0:00:01]} 6. Bd3 {[%emt 0:00:01]} g6 {[%emt 0:00:00]} 7. Qf3 {[%emt 0:00:01]} Be6 {[%emt 0:00:01]} 8. Nge2 {[%emt 0:00:01]} Bd6 {[%emt 0:00:01]} 9. Nf4 {[%emt 0:00:00]} Bf7 {[%emt 0:00:01]} 10. h4 {[%emt 0:00:04]} h5 {[%emt 0:00:01]} 11. g3 {[%emt 0:00:02]} O-O {[%emt 0:00:01]} 12. Nce2 {[%emt 0:00:03]} Re8 {[%emt 0:00:04]} 13. O-O {[%emt 0:00:03]} Nd7 {[%emt 0:00:03]} 14. Rfc1 {[%emt 0:00:03]} g5 {[%emt 0:00:06]} 15. Re1 {[%emt 0:00:01]} gxf4 {[%emt 0:00:01]} 16. Nxf4 {[%emt 0:00:00]} Bxf4 {[%emt 0:00:01]} 17. Qxf4 {[%emt 0:00:01]} Re4 {[%emt 0:00:05]} 18. b4 {[%emt 0:00:02]} Rxf4 {[%emt 0:00:01]} 19. exf4 {[%emt 0:00:01]} a5 {[%emt 0:00:03]} 20. b5 {[%emt 0:00:03]} Qb6 {[%emt 0:00:03]} 21. c3 {[%emt 0:00:02]} a4 {[%emt 0:00:02]} 22. Re7 {[%emt 0:00:02]} Qd8 {[%emt 0:00:02]} 23. Rae1 {[%emt 0:00:02]} a3 {[%emt 0:00:02]} 24. Bxf5 {[%emt 0:00:01]} Ne5 {[%emt 0:00:02]} 25. R7xe5 {[%emt 0:00:01]} fxe5 {[%emt 0:00:01]} 26. fxe5 {[%emt 0:00:01]} Qe7 {[%emt 0:00:02]} 27. e6 {[%emt 0:00:02]} Kg7 {[%emt 0:00:02]} 28. b6 {[%emt 0:00:02]} Kf6 {[%emt 0:00:01]} 29. Re5 {[%emt 0:00:02]} Bg8 {[%emt 0:00:01]} 30. f4 {[%emt 0:00:01]} Qg7 {[%emt 0:00:01]} 31. Kh2 {[%emt 0:00:02]} Re8 {[%emt 0:00:01]} 32. e7 {[%emt 0:00:01]} Rxe7 {[%emt 0:00:01]} 33. Bc8 {[%emt 0:00:01]} Bh7 {[%emt 0:00:01]} 34. Bg4 {[%emt 0:00:01]} hxg4 {[%emt 0:00:00]} 35. h5 {[%emt 0:00:01]} Kf7 {[%emt 0:00:00]} 36. Rxe7+ {[%emt 0:00:01]} Kxe7 {[%emt 0:00:00]} 37. f5 {[%emt 0:00:00]} Qg5 {[%emt 0:00:00]} 38. f6+ {[%emt 0:00:00]} Qxf6 {[%emt 0:00:00]} 39. Kg1 {[%emt 0:00:00]} Qf3 {[%emt 0:00:00]} 40. Kh2 {[%emt 0:00:00]} Qxc3 {[%emt 0:00:00]} 41. Kg2 {[%emt 0:00:00]} Qe1 {[%emt 0:00:00]} 42. Kh2 {[%emt 0:00:00]} Be4 {[%emt 0:00:00]} 43. h6 {[%emt 0:00:00]} c5 {[%emt 0:00:00]} 44. h7 {[%emt 0:00:00]} cxd4 {[%emt 0:00:00]} 45. h8=N {[%emt 0:00:00]} Qf2# {[%emt 0:00:00] (Lag: Av=0.06s, max=0.5s)} 0-1

[Event "5"]
[Site "Emanuel Lasker Arena"]
[Date "2024.04.09"]
[Round "2"]
[White "AlphaHero"]
[Black "Leuwe"]
[Result "0-1"]
[WhiteElo "2021"]
[BlackElo "2285"]
[Annotator "RC"]
[PlyCount "114"]
[EventDate "2024.04.09"]
[EventType "swiss (blitz)"]
[TimeControl "60"]

1. d4 {[%emt 0:00:00]} Nf6 {[%emt 0:00:01]} 2. c4 {[%emt 0:00:01]} e6 {[%emt 0:00:01]} 3. g3 {[%emt 0:00:01]} d5 {[%emt 0:00:01]} 4. Bg2 {[%emt 0:00:01]} Be7 {[%emt 0:00:01]} 5. Nf3 {[%emt 0:00:01]} O-O {[%emt 0:00:01]} 6. O-O {[%emt 0:00:01]} dxc4 {[%emt 0:00:01]} 7. Qc2 {[%emt 0:00:01]} b5 {[%emt 0:00:01]} 8. a4 {[%emt 0:00:01]} Bb7 {[%emt 0:00:00]} 9. axb5 {[%emt 0:00:01]} a6 {[%emt 0:00:00]} 10. bxa6 {[%emt 0:00:01]} Nxa6 {[%emt 0:00:01]} 11. Qxc4 {[%emt 0:00:01]} Bd5 {[%emt 0:00:01]} 12. Qc2 {[%emt 0:00:01]} c5 {[%emt 0:00:01]} 13. dxc5 {[%emt 0:00:01]} Nxc5 {[%emt 0:00:01]} 14. Rxa8 {[%emt 0:00:04]} Qxa8 {[%emt 0:00:01]} 15. Bg5 {[%emt 0:00:03]} Be4 {[%emt 0:00:03]} 16. Qc4 {[%emt 0:00:04]} Rb8 {[%emt 0:00:06]} 17. Nc3 {[%emt 0:00:03]} Rxb2 {[%emt 0:00:01]} 18. Nxe4 {[%emt 0:00:00]} Ncxe4 {[%emt 0:00:01]} 19. Ne5 {[%emt 0:00:03]} Qa5 {[%emt 0:00:06]} 20. Bxf6 {[%emt 0:00:03]} Nxf6 {[%emt 0:00:01]} 21. Ng4 {[%emt 0:00:02]} h5 {[%emt 0:00:05]} 22. Qc8+ {[%emt 0:00:02]} Qd8 {[%emt 0:00:01]} 23. Qxd8+ {[%emt 0:00:02]} Bxd8 {[%emt 0:00:00]} 24. Nxf6+ {[%emt 0:00:02]} Bxf6 {[%emt 0:00:01]} 25. e3 {[%emt 0:00:02]} h4 {[%emt 0:00:02]} 26. Rc1 {[%emt 0:00:01]} g6 {[%emt 0:00:02]} 27. Bf3 {[%emt 0:00:01]} Kg7 {[%emt 0:00:02]} 28. Rc4 {[%emt 0:00:01]} Be7 {[%emt 0:00:02]} 29. Rc1 {[%emt 0:00:01]} f5 {[%emt 0:00:02]} 30. e4 {[%emt 0:00:01]} Bd8 {[%emt 0:00:01]} 31. exf5 {[%emt 0:00:01]} gxf5 {[%emt 0:00:01]} 32. Re1 {[%emt 0:00:01]} Bb6 {[%emt 0:00:01]} 33. Re2 {[%emt 0:00:01]} Rxe2 {[%emt 0:00:01]} 34. Bxe2 {[%emt 0:00:00]} e5 {[%emt 0:00:01]} 35. Kg2 {[%emt 0:00:01]} Ba7 {[%emt 0:00:01]} 36. f4 {[%emt 0:00:01]} e4 {[%emt 0:00:01]} 37. g4 {[%emt 0:00:01]} Be3 {[%emt 0:00:01]} 38. Bd1 {[%emt 0:00:00]} Kf6 {[%emt 0:00:01]} 39. Kf1 {[%emt 0:00:01]} Bxf4 {[%emt 0:00:01]} 40. gxf5 {[%emt 0:00:00]} Bxh2 {[%emt 0:00:01]} 41. Bh5 {[%emt 0:00:01]} Kxf5 {[%emt 0:00:01]} 42. Kg2 {[%emt 0:00:00]} Bg3 {[%emt 0:00:01]} 43. Kh3 {[%emt 0:00:01]} Kg5 {[%emt 0:00:01]} 44. Bd1 {[%emt 0:00:00]} Be1 {[%emt 0:00:01]} 45. Be2 {[%emt 0:00:00]} Kf4 {[%emt 0:00:01]} 46. Bh5 {[%emt 0:00:00]} Bf2 {[%emt 0:00:00]} 47. Bd1 {[%emt 0:00:00]} Be1 {[%emt 0:00:00]} 48. Be2 {[%emt 0:00:00]} Bf2 {[%emt 0:00:01]} 49. Ba6 {[%emt 0:00:00]} Be1 {[%emt 0:00:00]} 50. Be2 {[%emt 0:00:00]} Bf2 {[%emt 0:00:00]} 51. Ba6 {[%emt 0:00:00]} Kf3 {[%emt 0:00:00]} 52. Bf1 {[%emt 0:00:00]} Be1 {[%emt 0:00:00]} 53. Ba6 {[%emt 0:00:00]} Bf2 {[%emt 0:00:00]} 54. Bc8 {[%emt 0:00:00]} Kf4 {[%emt 0:00:00]} 55. Be6 {[%emt 0:00:00]} Be1 {[%emt 0:00:00]} 56. Bf7 {[%emt 0:00:00]} Bf2 {[%emt 0:00:00]} 57. Be8 {[%emt 0:00:00] .} Bg3 {[%emt 0:00:00]} 0-1

[Event "5"]
[Site "Emanuel Lasker Arena"]
[Date "2024.04.09"]
[Round "2"]
[White "Sunset"]
[Black "Brutus"]
[Result "1/2-1/2"]
[WhiteElo "1878"]
[BlackElo "2042"]
[Annotator "RC"]
[PlyCount "99"]
[EventDate "2024.04.09"]
[EventType "swiss (blitz)"]
[TimeControl "60"]

1. Nf3 {[%emt 0:00:01]} Nf6 {[%emt 0:00:01]} 2. g3 {[%emt 0:00:01]} d5 {[%emt 0:00:04]} 3. Bg2 {[%emt 0:00:01]} c5 {[%emt 0:00:01]} 4. c4 {[%emt 0:00:01]} e6 {[%emt 0:00:01]} 5. O-O {[%emt 0:00:00]} Nc6 {[%emt 0:00:01]} 6. d4 {[%emt 0:00:01]} Be7 {[%emt 0:00:01]} 7. cxd5 {[%emt 0:00:01]} exd5 {[%emt 0:00:00]} 8. dxc5 {[%emt 0:00:01]} Bxc5 {[%emt 0:00:01]} 9. a3 {[%emt 0:00:01]} Ne4 {[%emt 0:00:01]} 10. b4 {[%emt 0:00:01]} Be7 {[%emt 0:00:02]} 11. Bb2 {[%emt 0:00:01]} O-O {[%emt 0:00:01]} 12. Nd4 {[%emt 0:00:02]} a5 {[%emt 0:00:03]} 13. Nd2 {[%emt 0:00:02]} Nxd4 {[%emt 0:00:01]} 14. Bxd4 {[%emt 0:00:01]} Re8 {[%emt 0:00:02]} 15. Qc2 {[%emt 0:00:01]} Bf6 {[%emt 0:00:07]} 16. Qd3 {[%emt 0:00:01]} Qd6 {[%emt 0:00:06]} 17. Qb5 {[%emt 0:00:06]} Bd7 {[%emt 0:00:03]} 18. Qd3 {[%emt 0:00:04]} Ba4 {[%emt 0:00:02]} 19. Rab1 {[%emt 0:00:05]} axb4 {[%emt 0:00:02]} 20. Rxb4 {[%emt 0:00:01]} Qc6 {[%emt 0:00:02]} 21. Rfb1 {[%emt 0:00:03]} Bc2 {[%emt 0:00:02]} 22. Qe3 {[%emt 0:00:03]} Bxb1 {[%emt 0:00:01]} 23. Rxb1 {[%emt 0:00:01]} Nxg3 {[%emt 0:00:02]} 24. Qxg3 {[%emt 0:00:01]} Bxd4 {[%emt 0:00:01]} 25. e3 {[%emt 0:00:02]} Qc2 {[%emt 0:00:02]} 26. exd4 {[%emt 0:00:01]} Qxd2 {[%emt 0:00:01]} 27. Bxd5 {[%emt 0:00:01]} Qxd4 {[%emt 0:00:01]} 28. Bxb7 {[%emt 0:00:01]} Rad8 {[%emt 0:00:01]} 29. Bc6 {[%emt 0:00:02]} h5 {[%emt 0:00:02]} 30. Bxe8 {[%emt 0:00:01]} Rxe8 {[%emt 0:00:00]} 31. h4 {[%emt 0:00:02]} Kh7 {[%emt 0:00:01]} 32. Qg5 {[%emt 0:00:01]} Re5 {[%emt 0:00:01]} 33. Qg3 {[%emt 0:00:01]} g6 {[%emt 0:00:01]} 34. a4 {[%emt 0:00:01]} Qe4 {[%emt 0:00:00]} 35. Rb8 {[%emt 0:00:01]} Rf5 {[%emt 0:00:00]} 36. a5 {[%emt 0:00:00]} Rxa5 {[%emt 0:00:01]} 37. Qb3 {[%emt 0:00:01]} Ra1+ {[%emt 0:00:00]} 38. Qb1 {[%emt 0:00:01]} Rxb1+ {[%emt 0:00:00]} 39. Rxb1 {[%emt 0:00:00]} Qxb1+ {[%emt 0:00:00]} 40. Kg2 {[%emt 0:00:00]} Qb4 {[%emt 0:00:00]} 41. f3 {[%emt 0:00:01]} Qg4+ {[%emt 0:00:00]} 42. fxg4 {[%emt 0:00:01]} hxg4 {[%emt 0:00:00]} 43. Kg3 {[%emt 0:00:00]} f5 {[%emt 0:00:00]} 44. Kf4 {[%emt 0:00:01]} Kh6 {[%emt 0:00:00]} 45. h5 {[%emt 0:00:01]} gxh5 {[%emt 0:00:00]} 46. Kxf5 {[%emt 0:00:01]} g3 {[%emt 0:00:00]} 47. Kf4 {[%emt 0:00:00]} g2 {[%emt 0:00:00]} 48. Kg3 {[%emt 0:00:00]} g1=R+ {[%emt 0:00:00]} 49. Kh4 {[%emt 0:00:01]} Rg7 {[%emt 0:00:01] '} 50. Kh3 {[%emt 0:00:00] (Lag: Av=0.06s, max=0.7s)} 1/2-1/2

[Event "5"]
[Site "Emanuel Lasker Arena"]
[Date "2024.04.09"]
[Round "2"]
[White "Lord Grantham"]
[Black "Hollis"]
[Result "1-0"]
[WhiteElo "1620"]
[BlackElo "1881"]
[Annotator "NA RC"]
[PlyCount "43"]
[EventDate "2024.04.09"]
[EventType "swiss (blitz)"]
[TimeControl "60"]

1. d4 {[%emt 0:00:01]} Nf6 {[%emt 0:00:01]} 2. c4 {[%emt 0:00:01]} g6 {[%emt 0:00:01]} 3. Nc3 {[%emt 0:00:01]} Bg7 {[%emt 0:00:01]} 4. e4 {[%emt 0:00:01]} d6 {[%emt 0:00:01]} 5. h3 {[%emt 0:00:01]} O-O {[%emt 0:00:01]} 6. Be3 {[%emt 0:00:01]} c5 {[%emt 0:00:01]} 7. d5 {[%emt 0:00:01]} Qa5 {[%emt 0:00:01]} 8. Bd2 {[%emt 0:00:01]} Na6 {[%emt 0:00:02]} 9. Nf3 {[%emt 0:00:01]} e6 {[%emt 0:00:02]} 10. Be2 {[%emt 0:00:02]} exd5 {[%emt 0:00:01]} 11. cxd5 {[%emt 0:00:01]} Nc7 {[%emt 0:00:04]} 12. Na4 {[%emt 0:00:04]} Nxe4 {[%emt 0:00:01]} 13. Bxa5 {[%emt 0:00:01]} b6 {[%emt 0:00:04]} 14. Qc2 {[%emt 0:00:04]} bxa5 {[%emt 0:00:01]} 15. Qxe4 {[%emt 0:00:01]} Re8 {[%emt 0:00:03]} 16. Qf4 {[%emt 0:00:04]} Ba6 {[%emt 0:00:01]} 17. O-O-O {[%emt 0:00:01]} Bxe2 {[%emt 0:00:01]} 18. Qxd6 {[%emt 0:00:01]} Na6 {[%emt 0:00:03]} 19. Ng5 {[%emt 0:00:03]} h6 {[%emt 0:00:03]} 20. Nxf7 {[%emt 0:00:03]} Kxf7 {[%emt 0:00:01]} 21. Rhe1 {[%emt 0:00:03]} Rf8 {[%emt 0:00:02]} 22. Qe6# {[%emt 0:00:02] (Lag: Av=0.05s, max=0.1s)} 1-0

[Event "5"]
[Site "Emanuel Lasker Arena"]
[Date "2024.04.09"]
[Round "2"]
[White "Roberta Draper"]
[Black "Girlfriend Chess"]
[Result "1-0"]
[WhiteElo "1620"]
[BlackElo "1753"]
[Annotator "NA RC"]
[PlyCount "29"]
[EventDate "2024.04.09"]
[EventType "swiss (blitz)"]
[TimeControl "60"]

1. e4 {[%emt 0:00:01]} e5 {[%emt 0:00:01]} 2. Nf3 {[%emt 0:00:01]} Nc6 {[%emt 0:00:01]} 3. Bb5 {[%emt 0:00:01]} a6 {[%emt 0:00:01]} 4. Ba4 {[%emt 0:00:01]} d6 {[%emt 0:00:01]} 5. Bxc6+ {[%emt 0:00:00]} bxc6 {[%emt 0:00:00]} 6. d4 {[%emt 0:00:01]} exd4 {[%emt 0:00:01]} 7. Nxd4 {[%emt 0:00:01]} c5 {[%emt 0:00:01]} 8. Ne2 {[%emt 0:00:01]} Qh4 {[%emt 0:00:01]} 9. Qd5 {[%emt 0:00:01]} Rb8 {[%emt 0:00:04]} 10. Qc6+ {[%emt 0:00:03]} Bd7 {[%emt 0:00:01]} 11. Qxc7 {[%emt 0:00:01]} Rb5 {[%emt 0:00:08]} 12. Nbc3 {[%emt 0:00:04]} Rb4 {[%emt 0:00:03]} 13. Bf4 {[%emt 0:00:04]} Rxb2 {[%emt 0:00:03]} 14. O-O-O {[%emt 0:00:03]} Ke7 {[%emt 0:00:02]} 15. Qxd6+ {[%emt 0:00:03] Girlfriend Chess resigns (Lag: Av=0.07s, max=0.4s)} 1-0

[Event "5"]
[Site "Emanuel Lasker Arena"]
[Date "2024.04.09"]
[Round "2"]
[White "Triskaidekaphobe"]
[Black "MikhailBerg"]
[Result "0-1"]
[WhiteElo "1620"]
[BlackElo "2094"]
[Annotator "RC"]
[PlyCount "68"]
[EventDate "2024.04.09"]
[EventType "swiss (blitz)"]
[TimeControl "60"]

1. d4 {[%emt 0:00:01]} Nf6 {[%emt 0:00:01]} 2. c4 {[%emt 0:00:01]} e5 {[%emt 0:00:01]} 3. dxe5 {[%emt 0:00:01]} Ng4 {[%emt 0:00:01]} 4. Bf4 {[%emt 0:00:01]} g5 {[%emt 0:00:01]} 5. Bg3 {[%emt 0:00:01]} Bg7 {[%emt 0:00:01]} 6. Nf3 {[%emt 0:00:01]} Nc6 {[%emt 0:00:01]} 7. h4 {[%emt 0:00:00]} Ngxe5 {[%emt 0:00:01]} 8. Nxe5 {[%emt 0:00:01]} Nxe5 {[%emt 0:00:00]} 9. Nc3 {[%emt 0:00:01]} g4 {[%emt 0:00:01]} 10. b3 {[%emt 0:00:01]} Nf3+ {[%emt 0:00:02]} 11. exf3 {[%emt 0:00:01]} Bxc3+ {[%emt 0:00:01]} 12. Ke2 {[%emt 0:00:01]} d5 {[%emt 0:00:04]} 13. cxd5 {[%emt 0:00:04]} gxf3+ {[%emt 0:00:01]} 14. gxf3 {[%emt 0:00:01]} Bf5 {[%emt 0:00:04]} 15. Bg2 {[%emt 0:00:03]} O-O {[%emt 0:00:05]} 16. Kf1 {[%emt 0:00:01]} Bxa1 {[%emt 0:00:01]} 17. Qxa1 {[%emt 0:00:01]} Qxd5 {[%emt 0:00:01]} 18. Bxc7 {[%emt 0:00:03]} Rfe8 {[%emt 0:00:03]} 19. Kg1 {[%emt 0:00:04]} Qd2 {[%emt 0:00:03]} 20. Qf6 {[%emt 0:00:03]} Re6 {[%emt 0:00:03]} 21. Qxf5 {[%emt 0:00:01]} Qc1+ {[%emt 0:00:02]} 22. Kh2 {[%emt 0:00:01]} Qxc7+ {[%emt 0:00:01]} 23. f4 {[%emt 0:00:02]} Qc3 {[%emt 0:00:02]} 24. Rg1 {[%emt 0:00:01]} Re1 {[%emt 0:00:03]} 25. Bd5+ {[%emt 0:00:03]} Rxg1 {[%emt 0:00:01]} 26. Qxf7+ {[%emt 0:00:01]} Kh8 {[%emt 0:00:00]} 27. Kxg1 {[%emt 0:00:02]} Qf6 {[%emt 0:00:01]} 28. Qxb7 {[%emt 0:00:02]} Rf8 {[%emt 0:00:02]} 29. Kf1 {[%emt 0:00:01]} Qd4 {[%emt 0:00:01]} 30. Be4 {[%emt 0:00:02]} Qd1+ {[%emt 0:00:01]} 31. Kg2 {[%emt 0:00:01]} Rg8+ {[%emt 0:00:01]} 32. Kh2 {[%emt 0:00:01]} Qg1+ {[%emt 0:00:01]} 33. Kh3 {[%emt 0:00:01]} Qg4+ {[%emt 0:00:01]} 34. Kh2 {[%emt 0:00:01]} Qxh4# {[%emt 0:00:00] (Lag: Av=0.05s, max=0.1s)} 0-1

[Event "5"]
[Site "Emanuel Lasker Arena"]
[Date "2024.04.09"]
[Round "3"]
[White "Einpassant"]
[Black "CheckMaid"]
[Result "1-0"]
[WhiteElo "1620"]
[BlackElo "1645"]
[Annotator "NA RC"]
[PlyCount "35"]
[EventDate "2024.04.09"]
[EventType "swiss (blitz)"]
[TimeControl "60"]

1. d4 {[%emt 0:00:01]} f5 {[%emt 0:00:01]} 2. Nc3 {[%emt 0:00:08]} Nf6 {[%emt 0:00:01]} 3. Bg5 {[%emt 0:00:06]} d5 {[%emt 0:00:01]} 4. Bxf6 {[%emt 0:00:01]} gxf6 {[%emt 0:00:01]} 5. e4 {[%emt 0:00:01]} h5 {[%emt 0:00:01]} 6. exd5 {[%emt 0:00:01]} e5 {[%emt 0:00:03]} 7. dxe6 {[%emt 0:00:01]} Bxe6 {[%emt 0:00:01]} 8. Qf3 {[%emt 0:00:03]} Qxd4 {[%emt 0:00:01]} 9. Qxb7 {[%emt 0:00:01]} Bb4 {[%emt 0:00:01]} 10. Nge2 {[%emt 0:00:01]} Bxc3+ {[%emt 0:00:05]} 11. Nxc3 {[%emt 0:00:01]} h4 {[%emt 0:00:01]} 12. Rd1 {[%emt 0:00:01]} Bd5 {[%emt 0:00:02]} 13. Qc8+ {[%emt 0:00:02]} Ke7 {[%emt 0:00:02]} 14. Qxc7+ {[%emt 0:00:01]} Ke6 {[%emt 0:00:03]} 15. Rxd4 {[%emt 0:00:01]} Rd8 {[%emt 0:00:03]} 16. Bc4 {[%emt 0:00:02]} f4 {[%emt 0:00:04]} 17. Nxd5 {[%emt 0:00:02]} Nd7 {[%emt 0:00:02]} 18. Ne3+ {[%emt 0:00:02] CheckMaid resigns (Lag: Av=0.05s, max=0.1s)} 1-0

[Event "5"]
[Site "Emanuel Lasker Arena"]
[Date "2024.04.09"]
[Round "3"]
[White "Sauerbruch"]
[Black "Botwinzig"]
[Result "0-1"]
[WhiteElo "1620"]
[BlackElo "1810"]
[Annotator "NA RC"]
[PlyCount "38"]
[EventDate "2024.04.09"]
[EventType "swiss (blitz)"]
[TimeControl "60"]

1. e4 {[%emt 0:00:01]} e5 {[%emt 0:00:01]} 2. Nf3 {[%emt 0:00:01]} Nc6 {[%emt 0:00:01]} 3. Bb5 {[%emt 0:00:01]} a6 {[%emt 0:00:01]} 4. Ba4 {[%emt 0:00:01]} d6 {[%emt 0:00:01]} 5. d4 {[%emt 0:00:01]} b5 {[%emt 0:00:01]} 6. Bb3 {[%emt 0:00:01]} Nxd4 {[%emt 0:00:01]} 7. Nxd4 {[%emt 0:00:01]} exd4 {[%emt 0:00:01]} 8. Qxd4 {[%emt 0:00:01]} Nf6 {[%emt 0:00:01]} 9. Bg5 {[%emt 0:00:01]} h6 {[%emt 0:00:01]} 10. Bd5 {[%emt 0:00:02]} hxg5 {[%emt 0:00:01]} 11. Bxa8 {[%emt 0:00:01]} c5 {[%emt 0:00:06]} 12. a4 {[%emt 0:00:04]} cxd4 {[%emt 0:00:01]} 13. axb5 {[%emt 0:00:01]} d3 {[%emt 0:00:06]} 14. Nc3 {[%emt 0:00:04]} dxc2 {[%emt 0:00:03]} 15. e5 {[%emt 0:00:04]} dxe5 {[%emt 0:00:01]} 16. Bc6+ {[%emt 0:00:03]} Bd7 {[%emt 0:00:02]} 17. Bxd7+ {[%emt 0:00:01]} Qxd7 {[%emt 0:00:01]} 18. bxa6 {[%emt 0:00:01]} Ba3 {[%emt 0:00:02]} 19. Rxa3 {[%emt 0:00:02]} c1=Q+ {[%emt 0:00:02] Sauerbruch resigns (Lag: Av=0.06s, max=0.3s)} 0-1